[Event "31st Kavala Open-A 2022"]
[Site "Kavala"]
[Date "2022.07.27"]
[Round "3.9"]
[White "Kalogridis, Antonios"]
[Black "Bharath Subramaniyam H"]
[Result "1/2-1/2"]
[ECO "A50"]
[WhiteElo "2272"]
[BlackElo "2479"]
[Annotator "TA"]
[PlyCount "60"]
[EventDate "2022.07.27"]
[EventType "swiss"]
[EventCountry "GRE"]
[SourceTitle "playchess.com"]
[Source "ChessBase"]
[SourceQuality "1"]
[TimeControl "40/5400+30:1800+30"]

{[%evp 10,60,41,20,26,30,27,22,15,14,22,6,14,10,0,15,49,43,50,8,18,16,6,0,0,0,0,0,2,-4,-5,-12,15,18,0,-20,-31,-61,0,0,608,46,58,61,64,0,0,0,54,0,17,0,0]} 1. d4 {[%emt 0:00:02]} Nf6 {[%emt 0:01:21]} 2. c4 {[%emt 0:00:03]} b6 {[%emt 0:01:04]} 3. Nc3 {[%emt 0:00:04]} Bb7 {[%emt 0:00:07]} 4. Qc2 {[%emt 0:00:04]} d5 {[%emt 0:00:29]} 5. cxd5 {[%emt 0:00:04]} Nxd5 {[%emt 0:00:08]} 6. Nf3 {[%emt 0:00:03]} Nxc3 {[%emt 0:00:26] A50: Queen's Fianchetto Defence (1 d4 Nf6 2 c4 b6).} 7. bxc3 {[%emt 0:00:06]} e6 {[%emt 0:00:06]} 8. e4 {[%emt 0:00:05]} Be7 {[%emt 0:00:21]} 9. Bf4 {[%emt 0:00:10]} O-O {[%emt 0:02:18]} 10. Bd3 {[%emt 0:00:03]} c5 {[%emt 0:02:42]} 11. d5 {[%emt 0:00:05]} exd5 {[%emt 0:20:57]} 12. exd5 {[%emt 0:00:05] [#]} h6 $146 {[%emt 0:14:51]} ({Predecessor:} 12... Qxd5 13. O-O-O Qh5 14. Be4 Bc6 15. Rhe1 c4 16. Bxh7+ Qxh7 17. Qxh7+ Kxh7 18. Rxe7 Kg8 {½-½ (46) Laghetti,G (2487)-Serner,A (2412) ICCF email 2020}) 13. O-O {[%emt 0:35:31]} Bd6 $1 {[%emt 0:05:12]} 14. Qd2 {[%emt 0:11:03][%cal Of4h6]} Bxf4 {[%emt 0:10:57]} 15. Qxf4 {[%emt 0:00:09]} Bxd5 {[%emt 0:03:01]} 16. Rad1 {[%emt 0:09:12]} Qf6 {[%emt 0:01:39]} 17. Qxf6 $40 {[%emt 0:00:31][%mdl 128] Black needs to defend precisely.} gxf6 {[%emt 0:00:01]} 18. Nh4 {[%emt 0:00:50]} Nc6 {[%emt 0:06:11]} 19. Nf5 {[%emt 0:02:54]} Kh8 {[%emt 0:07:38]} 20. Nxh6 {[%emt 0:04:57]} Bxa2 {[%emt 0:04:32]} 21. Be4 {[%emt 0:03:16]} Rac8 {[%emt 0:00:19]} 22. Rd3 {[%emt 0:03:00]} Rfe8 {[%emt 0:01:40]} 23. Re3 {[%emt 0:06:59]} Na5 {[%emt 0:03:58]} ({Black should play} 23... Be6 $15) 24. Nf5 $11 {[%emt 0:03:29] aiming for f4.} Re6 $2 {[%emt 0:08:28][%mdl 8192] [#]} (24... Rcd8 $11) 25. Rh3+ $2 {[%emt 0:04:10]} ({White has to play} 25. f4 $1 $18 Rd8 26. Rff3) 25... Kg8 $14 {[%emt 0:00:01]} 26. Rg3+ $1 {[%emt 0:01:34][%mdl 1024] White has compensation.} Kf8 {[%emt 0:00:21] [#]} 27. Rh3 {[%emt 0:03:53] White is more active.} Kg8 $11 28. Rg3+ {[%emt 0:00:15]} ({Better is} 28. Nh6+ $11 Kg7 29. Nf5+ Kg8) 28... Kf8 $14 {[%emt 0:00:07]} 29. Rh3 {[%cal Rh3h8]} Kg8 {Inhibits Rh8+.} 30. f4 {[%emt 0:00:02][%cal Of1f3] Intending Rff3! and mate.} Rd8 $1 {[%emt 0:00:16] Weighted Error Value: White=0.46/Black=0.37} (30... Rxe4 {leads to mate.} 31. Rff3 Re1+ 32. Kf2) 1/2-1/2

[Event "31st Kavala Open-A 2022"]
[Site "Kavala"]
[Date "2022.07.27"]
[Round "3.10"]
[White "Vrolijk, Liam"]
[Black "Ortega Lopez, Mikel"]
[Result "1-0"]
[ECO "E04"]
[WhiteElo "2464"]
[BlackElo "2249"]
[Annotator "TA"]
[PlyCount "37"]
[EventDate "2022.07.27"]
[EventType "swiss"]
[EventCountry "GRE"]
[SourceTitle "playchess.com"]
[Source "ChessBase"]
[SourceQuality "1"]
[TimeControl "40/5400+30:1800+30"]

{[%evp 14,37,32,12,15,22,42,40,31,49,59,60,67,66,70,63,88,65,264,91,108,-71,739,698,1027,927]} 1. d4 {[%emt 0:00:03]} Nf6 {[%emt 0:05:42]} 2. c4 {[%emt 0:00:08]} e6 {[%emt 0:00:06]} 3. Nf3 {[%emt 0:00:07]} d5 {[%emt 0:00:40]} 4. g3 {[%emt 0:03:54]} dxc4 {[%emt 0:01:39]} 5. Bg2 {[%emt 0:00:07]} Bd7 {[%emt 0:00:20]} 6. Ne5 {[%emt 0:02:00]} Bc6 {[%emt 0:00:10]} 7. Nxc6 {[%emt 0:00:56]} Nxc6 {[%emt 0:00:06]} 8. O-O {[%emt 0:02:34]} Qd7 {[%emt 0:00:15] E04: Open Catalan: 5 Nf3.} 9. e3 {[%emt 0:00:22][%mdl 1024] White has compensation.} O-O-O {[%emt 0:00:48]} 10. Nc3 {[%emt 0:00:23]} Nd5 {[%emt 0:04:28] White is slightly better.} 11. Bd2 {[%emt 0:01:10]} h5 {[%emt 0:06:23]} 12. b3 $1 {[%emt 0:06:01]} cxb3 {[%emt 0:03:06]} 13. Nxd5 {[%emt 0:11:42]} ({Much weaker is} 13. axb3 $6 Kb8 $15) 13... exd5 {[%emt 0:00:24]} 14. Qxb3 {[%emt 0:00:20] [#]} f5 $146 {[%emt 0:10:18]} ({Predecessor:} 14... Ne7 15. Rab1 c6 16. Rfc1 Kb8 17. e4 dxe4 18. Bxe4 f5 19. Bg2 g6 20. d5 Rc8 21. Bf4+ Ka8 22. dxc6 Nxc6 23. Rd1 {1-0 (23) Firouzja,A (2558)-Gholami Orimi,M (2299) Bushehr 2018}) 15. Rfc1 {[%emt 0:10:00] White is more active.} b6 $2 {[%emt 0:13:56] [#]} (15... Kb8 $14) 16. a4 $2 {[%emt 0:18:18]} (16. Bf1 $1 $18 {[%cal Rf1b5]}) 16... a5 $16 {[%emt 0:06:30] [#]} 17. Bxa5 {[%emt 0:07:23]} Nxa5 $4 {[%emt 0:09:08][%mdl 8192]} (17... bxa5 $17 18. Qb5 Rh6 19. Qa6+ Kb8 20. Rab1+ Nb4 21. Qxa5 Rb6) 18. Qxb6 $1 $18 {[%emt 0:00:31] Intending Qa6+ and mate.} Nb7 {[%emt 0:00:06] [#]} 19. Bxd5 $1 {[%emt 0:01:56][%mdl 512] Weighted Error Value: White=0.35/Black=0.40} 1-0

[Event "31st Kavala Open-A 2022"]
[Site "Kavala"]
[Date "2022.07.27"]
[Round "3.11"]
[White "Michalicka, Milan"]
[Black "Pijpers, Arthur"]
[Result "1/2-1/2"]
[ECO "E01"]
[WhiteElo "2216"]
[BlackElo "2458"]
[Annotator "TA"]
[PlyCount "49"]
[EventDate "2022.07.27"]
[EventType "swiss"]
[EventCountry "GRE"]
[SourceTitle "playchess.com"]
[Source "ChessBase"]
[SourceQuality "1"]
[TimeControl "40/5400+30:1800+30"]

{[%evp 11,49,0,0,-25,7,-33,-37,-41,0,-4,0,-3,-28,-33,30,-11,-10,-43,-32,-32,-41,-40,-34,-37,0,-2,0,-9,0,0,0,-10,-2,-18,0,-23,12,19,16,16]} 1. d4 {[%emt 0:00:03]} d5 {[%emt 0:00:04]} 2. c4 {[%emt 0:00:13]} c6 {[%emt 0:00:04]} 3. Nf3 {[%emt 0:00:09]} Nf6 {[%emt 0:00:05]} 4. Nc3 {[%emt 0:00:12]} e6 {[%emt 0:00:04]} 5. g3 {[%emt 0:00:46]} Nbd7 {[%emt 0:00:09]} 6. Bg2 {[%emt 0:00:16]} dxc4 {[%emt 0:00:05]} 7. e4 {[%emt 0:00:42][%cal Be2e4,Be4e5][%mdl 32] E01: Catalan: Early deviations.} Bb4 {[%emt 0:14:55]} 8. e5 {[%emt 0:00:48]} Nd5 {[%emt 0:01:59]} 9. Qc2 {[%emt 0:02:01] [#] Black is slightly better.} c5 $146 {[%emt 0:14:39] White must now prevent ...cxd4.} ({Predecessor:} 9... b5 10. O-O N7b6 11. Ne4 Bd7 12. Bg5 Qc7 13. a3 Bf8 14. h4 h6 15. Bd2 a5 {0-1 (33) Jolly,J (2203)-Patsia,Z (2091) Agneaux 2005}) 10. O-O {[%emt 0:09:01] Hoping for Nxd5.} cxd4 {[%emt 0:00:22]} 11. Nxd5 {[%emt 0:01:12]} exd5 {[%emt 0:00:08]} 12. Nxd4 {[%emt 0:00:13]} Nb6 {[%emt 0:01:05]} ({Better is} 12... Bc5 $15 13. Nf5 O-O) 13. b3 {[%emt 0:07:28][%mdl 1024] White has compensation.} O-O {[%emt 0:02:30]} 14. Bb2 {[%emt 0:02:06]} Bd7 {[%emt 0:04:45]} 15. Rac1 {[%emt 0:11:19][%cal Rb3c4]} Rc8 {[%emt 0:06:25]} 16. Qe2 {[%emt 0:01:27]} Qe7 {[%emt 0:06:22]} 17. Ba1 {[%emt 0:15:25]} cxb3 {[%emt 0:09:34]} 18. axb3 {[%emt 0:00:41]} Rxc1 {[%emt 0:00:06]} 19. Rxc1 {[%emt 0:00:06]} Rc8 {[%emt 0:00:04]} 20. Rd1 {[%emt 0:02:48]} a5 {[%emt 0:15:50]} 21. h4 {[%emt 0:16:29]} a4 {[%emt 0:07:05]} 22. bxa4 {[%emt 0:00:15][%cal Oa4a5]} Ra8 {[%emt 0:00:12][%cal Bc8a8,Ba8a4,Ba4b4][%mdl 32]} ({Resist} 22... Nxa4 23. Bxd5 Nc5 24. Qf3 $16) 23. Nc2 {[%emt 0:03:37]} Rxa4 {[%emt 0:02:53]} 24. Nxb4 {[%emt 0:00:31]} Rxb4 {[%emt 0:00:12]} 25. Bd4 {[%emt 0:01:15] Weighted Error Value: White=0.11 (very precise) /Black=0.17 (very precise)} 1/2-1/2

[Event "31st Kavala Open-A 2022"]
[Site "Kavala"]
[Date "2022.07.27"]
[Round "3.12"]
[White "Can, Isik"]
[Black "Tsarsitalidis, Christos"]
[Result "1-0"]
[ECO "B15"]
[WhiteElo "2445"]
[BlackElo "1896"]
[Annotator "TA"]
[PlyCount "57"]
[EventDate "2022.07.27"]
[EventType "swiss"]
[EventCountry "GRE"]
[SourceTitle "playchess.com"]
[Source "ChessBase"]
[SourceQuality "1"]
[TimeControl "40/5400+30:1800+30"]

{[%evp 18,57,51,37,39,24,37,36,47,47,50,39,46,0,34,36,77,70,125,135,163,154,160,131,241,234,320,335,328,325,471,472,774,756,911,913,1011,1000,1108,1104,1100,1002]} 1. e4 {[%emt 0:04:32]} c6 {[%emt 0:00:05]} 2. d4 {[%emt 0:00:04]} d5 {[%emt 0:00:04]} 3. Nd2 {[%emt 0:00:02]} dxe4 {[%emt 0:00:06]} 4. Nxe4 {[%emt 0:00:02]} Nf6 {[%emt 0:00:11]} 5. Nxf6+ {[%emt 0:00:05]} exf6 {[%emt 0:00:04]} 6. c3 {[%emt 0:00:05]} Bd6 {[%emt 0:00:04]} 7. Bd3 {[%emt 0:00:02]} O-O {[%emt 0:00:08]} 8. Qc2 {[%emt 0:00:04]} Re8+ {[%emt 0:00:05]} 9. Ne2 {[%emt 0:00:03]} h6 {[%emt 0:00:05]} 10. O-O {[%emt 0:00:05]} Nd7 {[%emt 0:00:11] is now more promising than 10...Qc7. B15: Caro-Kann: 3 Nc3: 3...g6 and 3...dxe4 4 Nxe4 Nf6 5 Nxf6+ exf6.} 11. Be3 {[%emt 0:00:10]} Nf8 {[%emt 0:02:55]} 12. h3 {[%emt 0:05:06]} Qc7 {[%emt 0:00:07] White is slightly better.} 13. c4 {[%emt 0:03:14][%cal Bc3c4,Bc4c5][%mdl 32]} c5 {[%emt 0:02:14]} 14. Nc3 {[%emt 0:06:28] aiming for Nb5.} cxd4 {[%emt 0:02:22] [#]} 15. Nb5 $146 {[%emt 0:05:28]} (15. Bxd4 $14 {was preferrable.} Ne6 16. Be3) ({Predecessor:} 15. Bxd4 Ne6 16. Be3 Bf4 17. Nd5 Qb8 18. Rae1 Bd7 19. Qd2 Bxe3 20. Rxe3 Bc6 21. Rfe1 {1-0 (38) Nemcova,K (2365)-Isgandarova,K (2188) Baku 2016}) 15... Qb8 {[%emt 0:04:05]} (15... Qe7 $5 {[%cal Rd4e3]} 16. Bxd4 Bb8 $11) 16. Bxd4 {[%emt 0:01:15]} Be5 {[%emt 0:02:28] [#]} 17. Bxe5 $1 {[%emt 0:04:54]} Qxe5 {[%emt 0:03:50]} ({Better is} 17... Rxe5 $14 18. f4 Rc5) 18. c5 $16 {[%emt 0:07:59]} Ne6 {[%emt 0:04:18]} 19. Rae1 {[%emt 0:00:24]} Qh5 {[%emt 0:03:41]} 20. b4 {[%emt 0:06:47] Strongly threatening f4.} Rd8 {[%emt 0:02:01]} (20... Bd7 $16 {was necessary.}) 21. f4 $18 {[%emt 0:02:50]} Bd7 {[%emt 0:03:05]} 22. Nd6 {[%emt 0:00:46]} Bc6 {[%emt 0:00:15]} 23. Bc4 {[%emt 0:04:33]} Rf8 {[%emt 0:21:59]} (23... Bd5 {keeps fighting.} 24. g4 Qxh3 25. Bxd5 Nxf4) 24. Kh2 {[%emt 0:04:52] White is clearly winning.} ({Weaker is} 24. Bxe6 fxe6 25. Rxe6 a6 $18) 24... Kh8 {[%emt 0:16:07]} (24... f5 $142 25. Nxf5 Kh8) 25. g4 {[%emt 0:01:22]} Qh4 {[%emt 0:00:04]} 26. Nf5 {[%emt 0:00:12] Active counter play!} Qxe1 {[%emt 0:00:05]} 27. Rxe1 {[%emt 0:00:03]} Nxf4 {[%emt 0:00:10]} 28. b5 {[%emt 0:00:10]} Bd5 {[%emt 0:01:23]} 29. Nd6 {[%emt 0:00:18] Weighted Error Value: White=0.07 (flawless) /Black=0.41} 1-0

[Event "31st Kavala Open-A 2022"]
[Site "Kavala"]
[Date "2022.07.27"]
[Round "3.13"]
[White "Maltsevskaya, Aleksandra"]
[Black "Mixakis, Evangelos"]
[Result "1-0"]
[ECO "B72"]
[WhiteElo "2378"]
[BlackElo "1883"]
[Annotator "TA"]
[PlyCount "91"]
[EventDate "2022.07.27"]
[EventType "swiss"]
[EventCountry "GRE"]
[SourceTitle "playchess.com"]
[Source "ChessBase"]
[SourceQuality "1"]
[TimeControl "40/5400+30:1800+30"]

{[%evp 15,91,-3,0,0,0,-37,-29,-36,-18,-6,1,-97,-84,-101,-52,-62,-71,-91,-72,-115,-102,-168,-44,-46,-8,-26,-13,-7,0,-29,-27,-73,-18,-1,0,-34,-46,-34,0,-61,0,0,0,0,0,0,62,-34,0,0,0,0,0,-44,58,0,0,0,0,0,107,101,426,426,2033,1908,2012,1808,2070,2041,29985,29986,29986,29987,29987,29988,29988,29989]} 1. e4 {[%emt 0:08:59]} c5 {[%emt 0:00:08]} 2. Nf3 {[%emt 0:00:07]} d6 {[%emt 0:00:12]} 3. d4 {[%emt 0:00:05]} cxd4 {[%emt 0:00:08]} 4. Nxd4 {[%emt 0:00:04]} Nf6 {[%emt 0:00:11]} 5. Nc3 {[%emt 0:00:08]} g6 {[%emt 0:00:11]} 6. Be3 {[%emt 0:00:48]} Bg7 {[%emt 0:00:11]} 7. Bc4 {[%emt 0:01:49]} O-O {[%emt 0:00:22]} 8. h3 {[%emt 0:01:14]} a6 {[%emt 0:03:01][%cal Of6e4]} 9. Bb3 {[%emt 0:01:19] B72: Sicilian Dragon: 6 Be3, lines with h3+Bc4 and sidelines.} b5 {[%emt 0:01:23][%cal Bb7b5,Bb5b4][%mdl 32]} 10. a4 {[%emt 0:03:39]} b4 {[%emt 0:00:50]} 11. Nd5 {[%emt 0:00:07] Black has an edge.} Bb7 {[%emt 0:01:59] [#]} 12. Nxf6+ $146 {[%emt 0:08:05]} ({Predecessor:} 12. h4 e6 13. Nf4 Bc8 14. h5 Re8 15. hxg6 hxg6 16. Qf3 e5 17. Nd5 exd4 18. Bg5 {0-1 (49) Mikhaletz,L (2348)-Karolczuk,I (2201) Ustron 2021}) 12... Bxf6 {[%emt 0:00:11]} 13. Bd5 {[%emt 0:01:01]} (13. h4 $11) 13... Qc8 {[%emt 0:03:20]} 14. O-O {[%emt 0:03:09] [#]} e6 {[%emt 0:06:39]} (14... Bxd5 $1 $17 15. exd5 Qc4) 15. Bxb7 $15 {[%emt 0:02:06]} Qxb7 {[%emt 0:00:03]} 16. Qf3 {[%emt 0:06:33]} Bg7 {[%emt 0:00:43]} 17. Rfd1 {[%emt 0:00:16][%cal Oe4e5]} Nd7 {[%emt 0:02:44]} 18. Nb3 {[%emt 0:09:52]} (18. Bg5 $17) 18... Ne5 {[%emt 0:02:18]} (18... Bxb2 $19 19. Ra2 Be5) 19. Qe2 $1 {[%emt 0:00:09]} Rfd8 {[%emt 0:06:38]} (19... Qxe4 {is interesting.} 20. Rd4 Qc6 21. Rxb4 Rfc8) 20. f4 {[%emt 0:00:54]} Nc6 {[%emt 0:01:04]} 21. Rab1 {[%emt 0:05:15]} a5 {[%emt 0:04:03]} 22. Kh1 {[%emt 0:01:28]} Ne7 {[%emt 0:05:25]} 23. Bf2 {[%emt 0:06:07]} (23. Bd4 $11) 23... d5 {[%emt 0:00:55]} (23... Bh6 $17) 24. e5 $11 {[%emt 0:02:02]} Rdc8 {[%emt 0:02:27]} 25. Nc5 {[%emt 0:03:11]} Qc6 {[%emt 0:01:14]} 26. c3 {[%emt 0:00:14]} Rab8 {[%emt 0:01:17]} 27. Rbc1 {[%emt 0:05:07]} ({White should play} 27. Na6 $11) 27... Nf5 {[%emt 0:01:55]} (27... bxc3 $15 28. Rxc3 Rb4) 28. cxb4 {[%emt 0:04:12]} Rxb4 {[%emt 0:00:55]} 29. Nd3 {[%emt 0:00:08][%csl LRb4,LRc6]} Rc4 {[%emt 0:00:49]} 30. b3 {[%emt 0:00:06]} Rc2 {[%emt 0:09:50]} (30... Rxc1 $11 31. Rxc1 Qb7) 31. Qe1 {[%emt 0:04:46]} (31. Rxc2 $14 Qxc2 32. Qxc2 Rxc2 33. Be1) 31... Qa6 {[%emt 0:12:12]} 32. Rxc2 {[%emt 0:05:18]} Rxc2 {[%emt 0:00:13]} 33. b4 {[%emt 0:00:04] aiming for b5.} Qc4 {[%emt 0:02:29] Strongly threatening ...Rc3.} 34. bxa5 {[%emt 0:00:17][%cal Oa5a6]} (34. b5 $5 {[%cal Rb5b6]} Bf8 35. b6 $11) 34... Qxa4 {[%emt 0:00:49]} (34... Bf8 $1 $15) 35. Ra1 {[%emt 0:01:00]} (35. a6 $1 $14) 35... Ra2 $1 {[%emt 0:00:40]} 36. Rxa2 {[%emt 0:01:16]} Qxa2 {[%emt 0:00:02]} 37. Qb4 {[%emt 0:03:10] Threatens to win with Qb8+.} h5 {[%emt 0:00:51]} (37... Bf8 $11 38. Qb5 Be7) 38. Qb5 $36 {[%emt 0:00:40][%mdl 2048] White has strong initiative.} h4 $2 {[%emt 0:01:24][%mdl 8192] Black cannot hold the game after this.} (38... Bh6 $16 {is more resistant.}) 39. a6 $18 {[%emt 0:00:41]} d4 {[%emt 0:28:58]} (39... Ng3+ $142 40. Kh2 Qa1) 40. Qb8+ {[%emt 0:00:00]} Kh7 {[%emt 0:00:00]} 41. a7 {[%emt 0:00:32]} Qa1+ {[%emt 0:05:54]} 42. Kh2 {[%emt 0:01:04]} Ng3 {[%emt 0:02:34]} 43. Bxg3 {[%emt 0:00:06] White mates.} hxg3+ {[%emt 0:00:18]} 44. Kxg3 {[%emt 0:00:06]} Qa3 {[%emt 0:00:28] [#]} 45. a8=Q $1 {[%emt 0:00:08]} Qxd3+ {[%emt 0:00:14]} 46. Kh2 {[%emt 0:00:05] Weighted Error Value: White=0.24 (precise) /Black=0.62} 1-0

[Event "31st Kavala Open-A 2022"]
[Site "Kavala"]
[Date "2022.07.27"]
[Round "3.14"]
[White "Bozinakis, Pavlos"]
[Black "Schroeder, Jan-Christian"]
[Result "0-1"]
[ECO "C84"]
[WhiteElo "2195"]
[BlackElo "2563"]
[Annotator "TA"]
[PlyCount "64"]
[EventDate "2022.07.27"]
[EventType "swiss"]
[EventCountry "GRE"]
[SourceTitle "playchess.com"]
[Source "ChessBase"]
[SourceQuality "1"]
[TimeControl "40/5400+30:1800+30"]

{[%evp 20,64,35,17,21,2,8,6,0,2,29,30,37,31,33,26,67,0,0,0,23,13,31,6,22,-7,0,0,0,-24,21,-37,-29,-43,-37,-87,-40,-94,-68,-144,-163,-146,-141,-183,-162,-147,-120]} 1. e4 {[%emt 0:00:21]} e5 {[%emt 0:00:05]} 2. Nf3 {[%emt 0:00:18]} Nc6 {[%emt 0:00:04]} 3. Bb5 {[%emt 0:00:41]} a6 {[%emt 0:00:05]} 4. Ba4 {[%emt 0:00:08]} Nf6 {[%emt 0:00:44]} 5. O-O {[%emt 0:00:34]} Be7 {[%emt 0:00:15]} 6. d3 {[%emt 0:01:11]} d6 {[%emt 0:00:45]} 7. c3 {[%emt 0:00:39]} O-O {[%emt 0:00:08]} 8. Re1 {[%emt 0:01:12]} Re8 {[%emt 0:05:53]} 9. Nbd2 {[%emt 0:02:52]} Bf8 {[%emt 0:00:13]} 10. h3 {[%emt 0:02:51]} h6 {[%emt 0:00:32]} 11. Nf1 {[%emt 0:01:33]} b5 {[%emt 0:01:21] C84: Closed Ruy Lopez: Unusual White 6th moves.} 12. Bb3 {[%emt 0:01:46]} Na5 {[%emt 0:00:31]} 13. Bc2 {[%emt 0:00:14]} c5 {[%emt 0:00:03] The position is equal.} 14. d4 {[%emt 0:03:03] outshines the older 14.Ng3.} Bd7 $5 {[%emt 0:07:32][%mdl 4] Exploring less charted territory.} 15. d5 {[%emt 0:02:04]} Nc4 {[%emt 0:11:28]} 16. b3 {[%emt 0:01:31]} Nb6 {[%emt 0:00:04]} 17. Ne3 {[%emt 0:00:47]} a5 {[%emt 0:06:51][%cal Ba6a5,Ba5a4][%mdl 32] [#]} 18. Nh2 $146 {[%emt 0:08:05]} (18. a4 $1 $14) ({Predecessor:} 18. a4 c4 19. bxc4 Nxa4 20. Bxa4 bxa4 21. Nd2 Rb8 22. Ba3 g6 23. Kh2 Nh7 24. Qf3 h5 25. Nef1 Qc7 26. Qe3 Be7 27. Rab1 Bg5 28. Qd3 Nf6 {½-½ (28) Todorovic,G (2410)-Geller,E (2515) Pancevo 1987}) 18... a4 $11 {[%emt 0:10:46] aiming for ...axb3.} 19. b4 {[%emt 0:01:07]} Qc7 {[%emt 0:04:12]} 20. Bd2 {[%emt 0:06:34]} a3 {[%emt 0:04:07]} 21. Rc1 {[%emt 0:05:59]} Be7 {[%emt 0:02:04]} 22. Bd3 {[%emt 0:05:20]} Na4 {[%emt 0:06:06]} 23. Qf3 {[%emt 0:01:15]} Nb2 {[%emt 0:01:31]} 24. Be2 {[%emt 0:05:35]} Rab8 {[%emt 0:09:37]} 25. g4 {[%emt 0:01:02]} (25. c4 $11) 25... Nh7 {[%emt 0:01:42]} 26. Nhf1 {[%emt 0:07:29]} Bg5 {[%emt 0:00:40]} 27. Ng3 {[%emt 0:01:36]} (27. bxc5 $15 Qxc5 28. Nf5) 27... g6 {[%emt 0:00:34]} (27... c4 $17) 28. Nef1 {[%emt 0:14:45]} ({Better is} 28. Ngf1 $15) 28... Rec8 $17 {[%emt 0:01:34] Black is more active.} 29. h4 {[%emt 0:02:23]} (29. Be3 $15) 29... Bxd2 {[%emt 0:00:24] Black is clearly better.} 30. Nxd2 {[%emt 0:00:06] [#]} Qd8 $1 {[%emt 0:00:56]} 31. h5 {[%emt 0:09:01]} Qg5 {[%emt 0:05:08]} 32. Qe3 {[%emt 0:01:46]} Qxe3 {[%emt 0:04:28] Weighted Error Value: White=0.23 (precise) /Black=0.10 (very precise)} 0-1